bitfinex/quotes_ETHUSD_20240817
["timestamp","ask_amount","ask_price","bid_price","bid_amount"]
[1723874088575,0.86336,2605.1,2605.0,7.67754]
[1723874094714,0.05801997,2605.1,2605.0,7.67754]
[1723874095090,1.26765605,2605.1,2605.0,7.67754]
[1723874103863,0.05801997,2605.1,2605.0,7.67754]
[1723874104384,4.91943421,2605.1,2605.0,3.83877]
[1723874104556,6.93530492,2605.1,2605.0,3.83877]
[1723874106271,4.91943421,2605.1,2605.0,3.83877]
[1723874106476,24.53943421,2605.1,2605.0,3.83877]
[1723874106788,26.55699626,2605.1,2605.0,3.83877]
[1723874109947,24.53943421,2605.1,2605.0,3.83877]
[1723874110152,26.55697439,2605.1,2605.0,3.83877]
[1723874111254,26.55683736,2605.1,2605.0,3.83877]
[1723874113986,21.69542312,2605.1,2605.0,3.83877]
[1723874114190,19.67801997,2605.1,2605.0,7.67754]
[1723874114403,20.88823247,2605.1,2605.0,7.67754]
[1723874115254,0.86476307,2605.1,2605.0,9.94744]
[1723874115455,0.05801997,2605.1,2605.0,16.242854]
[1723874115764,0.05801997,2605.1,2605.0,17.57798189]
[1723874115967,0.05801997,2605.1,2605.0,22.58067343]
[1723874116271,20.4267431,2605.4,2605.2,3.83847]
[1723874116501,20.4267431,2605.4,2605.3,2.2699]
[1723874116729,20.4267431,2605.4,2605.3,9.94654]
[1723874117085,20.42637566,2605.4,2605.3,9.94654]
[1723874117586,5.66e-06,2605.7,2605.3,3.0]
[1723874117786,5.66e-06,2605.9,2605.8,11.51277]
[1723874118097,1.2102125,2606.1,2606.0,7.67458]
[1723874118409,1.2102125,2606.2,2606.1,7.6743]
[1723874118734,20.8302125,2606.3,2606.2,3.837]
[1723874118885,20.8302125,2606.3,2606.2,7.674]
[1723874119289,19.62,2606.3,2606.2,7.674]
[1723874124333,19.62,2606.4,2606.3,3.83685]
[1723874125035,19.62,2606.4,2606.3,7.6737]
[1723874125910,19.67069033,2606.4,2606.3,7.6737]
[1723874126724,0.05069033,2606.4,2606.3,7.6737]
[1723874127035,0.05069033,2606.4,2606.3,8.82478]
[1723874130649,19.62,2606.6,2606.5,3.83656]
[1723874131799,19.62,2606.6,2606.5,7.67312]
[1723874140760,19.70632869,2606.6,2606.5,7.67312]
[1723874141714,22.10012869,2606.6,2606.5,7.67312]
[1723874143233,19.70632869,2606.6,2606.5,7.67312]
[1723874157461,20.50866304,2606.6,2606.5,7.67312]
[1723874157840,19.70632869,2606.6,2606.5,7.67312]
[1723874159560,20.50866304,2606.6,2606.5,7.67312]
[1723874159729,19.70632869,2606.6,2606.5,7.67312]
[1723874159931,19.70632869,2606.6,2606.5,10.04012]
[1723874160556,19.70632869,2606.6,2606.5,13.87668]
[1723874162154,19.70632869,2606.6,2606.5,16.87668]
[1723874165774,0.08632869,2606.6,2606.5,16.87668]
[1723874166158,20.42233435,2606.8,2606.7,7.67252]
[1723874170157,19.62,2606.8,2606.7,7.67252]
[1723874170358,20.42233435,2606.8,2606.7,7.67252]
[1723874170667,19.62,2606.8,2606.7,7.67252]
[1723874170862,19.70516011,2606.8,2606.7,7.67252]
[1723874171063,20.50749446,2606.8,2606.7,7.67252]
[1723874171257,19.70516011,2606.8,2606.7,7.67252]
[1723874171662,20.50749446,2606.8,2606.7,7.67252]
[1723874171989,19.70516011,2606.8,2606.7,7.67252]
[1723874172159,20.51026675,2606.8,2606.7,7.67252]
[1723874174185,20.51022151,2606.8,2606.7,7.67252]
[1723874182105,19.70516011,2606.8,2606.7,7.67252]
[1723874182403,20.51006338,2606.8,2606.7,7.67252]
[1723874183897,0.89006338,2606.8,2606.7,7.67252]
[1723874188613,0.08516011,2606.8,2606.7,7.67252]
[1723874188920,0.89009859,2606.8,2606.7,7.67252]
[1723874189118,0.08516011,2606.8,2606.7,7.67252]
[1723874190308,0.89017409,2606.8,2606.7,7.67252]
[1723874190718,0.08516011,2606.8,2606.7,7.67252]
[1723874192606,1.29537261,2606.8,2606.7,7.67252]
[1723874193845,0.08516011,2606.8,2606.7,7.67252]
[1723874194230,1.29537261,2606.8,2606.7,7.67252]
[1723874199041,0.08516011,2606.8,2606.7,7.67252]
[1723874199221,1.29537261,2606.8,2606.7,7.67252]
[1723874201456,0.89094654,2606.8,2606.7,7.67252]
[1723874201634,0.08516011,2606.8,2606.7,7.67252]
[1723874202226,0.89094136,2606.8,2606.7,7.67252]
[1723874202773,0.08516011,2606.8,2606.7,7.67252]
[1723874202941,0.89106477,2606.8,2606.7,7.67252]
[1723874203105,1.29537261,2606.8,2606.7,7.67252]
[1723874203707,0.08516011,2606.8,2606.7,7.67252]
[1723874204341,1.29537261,2606.8,2606.7,7.67252]
[1723874205838,0.08516011,2606.8,2606.7,11.50878]
[1723874206048,0.89148652,2606.8,2606.7,11.50878]
[1723874207452,0.08516011,2606.8,2606.7,11.50878]
[1723874209321,0.08516011,2606.8,2606.7,13.95798]
[1723874210165,0.89148652,2606.8,2606.7,13.95798]
[1723874212376,0.08516011,2606.8,2606.7,17.79424]
[1723874212520,0.80632641,2607.0,2606.9,11.50791]
[1723874212720,0.80632641,2607.0,2606.9,13.95711]
[1723874215761,0.8865693,2607.0,2606.9,13.95711]
[1723874216265,0.08024289,2607.0,2606.9,13.95711]
[1723874217551,0.8865693,2607.0,2606.9,13.95711]
[1723874218370,0.08024289,2607.0,2606.9,7.67194]
[1723874218528,1.29045539,2607.0,2606.9,7.67194]
[1723874223069,0.08024289,2607.0,2606.9,7.67194]
[1723874226770,1.28857259,2607.0,2606.9,7.67194]
[1723874226941,1.69404422,2607.0,2606.9,7.67194]
[1723874228370,1.28860689,2607.0,2606.9,7.67194]
[1723874229567,1.28864649,2607.0,2606.9,7.67194]
[1723874229772,0.08024289,2607.0,2606.9,7.67194]
[1723874229966,0.88579972,2607.0,2606.9,7.67194]
[1723874230402,0.08024289,2607.0,2606.9,7.67194]
[1723874231699,0.88577993,2607.0,2606.9,7.67194]
[1723874231866,0.08024289,2607.0,2606.9,7.67194]
[1723874232068,1.28864649,2607.0,2606.9,7.67194]
[1723874232587,1.69404422,2607.0,2606.9,7.67194]
[1723874232896,1.28867073,2607.0,2606.9,7.67194]
[1723874233085,0.08024289,2607.0,2606.9,7.67194]
[1723874233271,1.69404422,2607.0,2606.9,7.67194]
[1723874234487,0.08024289,2607.0,2606.9,7.67194]
[1723874235905,1.28876531,2607.0,2606.9,7.67194]
[1723874236502,0.08024289,2607.0,2606.9,7.67194]
[1723874236798,1.28878166,2607.0,2606.9,7.67194]
[1723874239108,1.69404422,2607.0,2606.9,7.67194]
[1723874239897,0.08024289,2607.0,2606.9,7.67194]
[1723874241092,1.69404422,2607.0,2606.9,7.67194]
[1723874247696,2.457,2606.9,2606.4,3.83668]
[1723874247902,4.0695748,2606.5,2606.4,3.83668]
[1723874248068,3.19842219,2606.5,2606.4,3.83668]
[1723874248267,4.14980071,2606.5,2606.4,3.83668]
[1723874248464,1.69280071,2606.5,2606.4,3.83668]
[1723874248668,1.28918486,2606.5,2606.4,3.83668]
[1723874251009,0.08020103,2606.5,2606.4,3.83668]
[1723874251193,1.28918486,2606.5,2606.4,3.83668]
[1723874252471,0.08020103,2606.5,2606.4,3.83668]
[1723874252973,0.88555989,2606.5,2606.4,3.83668]
[1723874253396,0.88555989,2606.5,2606.4,8.440733]
[1723874253397,0.08020103,2606.5,2606.4,8.440733]
[1723874253786,0.88555989,2606.5,2606.4,8.440733]
[1723874254446,0.88555989,2606.5,2606.4,7.67338]
[1723874266328,0.08020103,2606.5,2606.4,7.67338]
[1723874266951,0.88555989,2606.5,2606.4,7.67338]
[1723874269665,0.08020103,2606.5,2606.4,11.51008]
[1723874269867,0.08020103,2606.5,2606.4,15.24388]
[1723874270031,0.80535886,2606.7,2606.6,7.67282]
[1723874275843,0.88434916,2606.7,2606.6,7.67282]
[1723874278977,0.0789903,2606.7,2606.6,7.67282]
[1723874279181,1.20898383,2606.8,2606.7,3.83626]
[1723874279584,1.61259968,2606.9,2606.8,3.83612]
[1723874280792,4.27049054,2607.0,2606.8,3.83612]
[1723874281092,1.61052414,2606.9,2606.8,3.83612]
[1723874281460,5.27853225,2607.0,2606.8,3.83612]
[1723874281677,1.61059401,2606.9,2606.8,3.83612]
[1723874281849,6.60753225,2607.0,2606.8,3.83612]
[1723874282583,2.01309054,2606.9,2606.8,3.83612]
[1723874283156,6.60782592,2607.0,2606.8,3.83612]
[1723874283352,1.61070818,2606.9,2606.8,3.83612]
[1723874284168,5.59978421,2607.0,2606.8,3.83612]
[1723874284587,2.01338421,2606.9,2606.8,3.83612]
[1723874285363,5.59978421,2607.0,2606.8,3.83612]
[1723874285900,2.01338421,2606.9,2606.8,3.83612]
[1723874286499,2.57336263,2606.9,2606.5,3.83642]
[1723874286704,5.19764967,2606.6,2606.4,3.83668]
[1723874286854,1.20848426,2606.5,2606.2,3.83687]
[1723874287189,1.20848426,2606.5,2606.4,3.83669]
[1723874287493,1.20848426,2606.5,2606.3,6.83681]
[1723874287669,0.80565222,2606.4,2606.3,3.83681]
[1723874287863,1.20847758,2606.4,2606.3,3.83681]
[1723874288269,1.20847758,2606.4,2606.2,7.67375]
[1723874288579,0.80568848,2606.3,2606.2,3.83687]
[1723874288752,0.80568848,2606.3,2606.2,6.83687]
[1723874290192,0.80568848,2606.3,2606.2,10.67387]
[1723874290901,0.88463308,2606.3,2606.2,10.67387]
[1723874291203,0.88463308,2606.3,2606.2,11.741257]
[1723874291204,0.0789446,2606.3,2606.2,11.741257]
[1723874291552,0.88463308,2606.3,2606.2,11.741257]
[1723874292871,0.0789446,2606.3,2606.2,11.741257]
[1723874293206,0.88463308,2606.3,2606.2,11.741257]
[1723874293896,0.0789446,2606.3,2606.2,17.844257]
[1723874295162,0.80568848,2606.5,2606.4,7.6734]
[1723874296887,1.20847758,2606.6,2606.5,7.67312]
[1723874299011,1.61124967,2606.7,2606.6,3.83641]
[1723874299801,1.61225084,2606.7,2606.6,3.83641]
[1723874301997,1.61225084,2606.7,2606.6,7.67282]
[1723874302194,2.01527705,2606.9,2606.7,3.83626]
[1723874302587,2.01527705,2606.8,2606.7,3.83626]
[1723874303268,2.01527705,2606.8,2606.6,3.83641]
[1723874303495,2.01527705,2606.8,2606.6,7.67282]
[1723874303691,2.01527705,2606.8,2606.6,3.83641]
[1723874304007,8.94328171,2607.0,2606.6,3.83641]
[1723874304008,2.01527705,2606.7,2606.6,3.83641]
[1723874305099,0.89432817,2606.9,2606.6,3.83641]
[1723874305100,2.01527705,2606.8,2606.6,3.83641]
[1723874305413,4.39167705,2606.7,2606.6,3.83641]
[1723874305615,4.3918057,2606.7,2606.6,3.83641]
[1723874305914,4.47074248,2606.7,2606.6,3.83641]
[1723874310315,4.47077882,2606.7,2606.6,3.83641]
[1723874314838,4.47078858,2606.7,2606.6,3.83641]
[1723874315746,2.09438858,2606.7,2606.6,3.83641]
[1723874315905,1.69121585,2606.7,2606.6,3.83641]
[1723874316106,1.69121585,2606.7,2606.6,6.15991]
[1723874316306,0.07893678,2606.7,2606.6,6.15991]
[1723874316534,2.0154518,2606.9,2606.7,3.83626]
[1723874317226,2.4588512,2606.9,2606.7,3.83626]
[1723874318321,2.0154518,2606.8,2606.7,3.83626]
[1723874319110,0.4433994,2606.9,2606.7,3.83626]
[1723874319449,2.01532078,2606.8,2606.7,3.83626]
[1723874319626,2.01532078,2606.8,2606.5,3.83646]
[1723874319627,1.329,2606.8,2606.5,7.67287]
[1723874319808,1.61237781,2606.6,2606.5,3.83641]
[1723874320949,1.69132193,2606.6,2606.5,3.83641]
[1723874322012,2.19490135,2606.6,2606.4,3.83662]
[1723874322358,1.61237781,2606.5,2606.3,3.83682]
[1723874322537,1.61237781,2606.4,2606.3,3.83682]
[1723874322737,1.69127825,2606.4,2606.3,3.83682]
[1723874323186,0.07890044,2606.4,2606.3,3.83682]
[1723874323559,1.28820419,2606.4,2606.3,3.83682]
[1723874324663,0.8850686,2606.4,2606.3,10.995943]
[1723874324865,0.07890044,2606.4,2606.3,10.995943]
[1723874325262,1.28820419,2606.4,2606.3,10.995943]
[1723874325466,0.88507825,2606.4,2606.3,10.995943]
[1723874325702,1.28820419,2606.4,2606.3,10.995943]
[1723874325875,0.07890044,2606.4,2606.3,10.995943]
[1723874326204,1.28820419,2606.4,2606.3,10.995943]
[1723874326406,0.8850919,2606.4,2606.3,10.995943]
[1723874326592,0.07890044,2606.4,2606.3,10.995943]
[1723874327170,1.28820419,2606.4,2606.3,10.995943]
[1723874328271,0.07890044,2606.4,2606.3,10.995943]
[1723874328808,1.28820419,2606.4,2606.3,10.995943]
[1723874329405,0.07890044,2606.4,2606.3,10.995943]
[1723874329596,1.28820419,2606.4,2606.3,10.995943]
[1723874330086,0.07890044,2606.4,2606.3,10.995943]
[1723874330709,1.28820419,2606.4,2606.3,10.995943]
[1723874331576,0.88516436,2606.4,2606.3,10.995943]
[1723874331887,0.07890044,2606.4,2606.3,10.995943]
[1723874332224,0.88516229,2606.4,2606.3,10.995943]
[1723874333476,0.07890044,2606.4,2606.3,10.995943]
[1723874333997,0.88516877,2606.4,2606.3,10.995943]
[1723874334619,0.07890044,2606.4,2606.3,10.995943]
[1723874334924,0.88516877,2606.4,2606.3,10.995943]
[1723874336284,0.07890044,2606.4,2606.3,7.67367]
[1723874336522,1.28820419,2606.4,2606.3,7.67367]
[1723874336729,1.69127825,2606.4,2606.3,3.83682]
[1723874336924,4.33617007,2606.4,2606.3,3.83682]
[1723874338234,2.06197007,2606.4,2606.3,3.83682]
[1723874338530,1.69127825,2606.4,2606.3,3.83682]
[1723874341710,1.28833091,2606.4,2606.3,3.83682]
[1723874346960,1.69127825,2606.4,2606.3,3.83682]
[1723874347461,0.07890044,2606.4,2606.3,3.83682]
[1723874347620,1.69127825,2606.4,2606.3,3.83682]
[1723874350034,0.07890044,2606.4,2606.3,3.83682]
[1723874350240,1.69127825,2606.4,2606.3,3.83682]
[1723874352865,0.07890044,2606.4,2606.3,3.83682]
[1723874353253,1.69127825,2606.4,2606.3,3.83682]
[1723874357996,0.07890044,2606.4,2606.3,3.83682]
[1723874358488,1.69127825,2606.4,2606.3,3.83682]
[1723874360400,0.07890044,2606.4,2606.3,7.67367]
[1723874360653,1.69127825,2606.4,2606.3,7.67367]
[1723874360819,1.69127825,2606.4,2606.3,3.83682]
[1723874361103,1.28821366,2606.4,2606.3,7.67367]
[1723874362080,0.07890044,2606.4,2606.3,3.83682]
[1723874362275,2.1829002,2606.4,2606.3,3.83682]
[1723874362675,1.69127825,2606.4,2606.3,3.83682]
[1723874363277,0.07890044,2606.4,2606.3,3.83682]
[1723874366493,1.69166321,2606.4,2606.3,3.83682]
[1723874376623,0.07890044,2606.4,2606.3,3.83682]
[1723874377232,1.69166321,2606.4,2606.3,3.83682]
[1723874385489,0.07890044,2606.4,2606.3,3.83682]
[1723874385908,1.329,2606.6,2606.3,3.83682]
[1723874386435,0.07313719,2606.5,2606.3,3.83682]
[1723874388612,0.07313719,2606.5,2606.2,7.67381]
[1723874388918,0.45863091,2606.5,2606.2,7.67381]
[1723874389691,2.4278,2606.3,2605.8,2.4564]
[1723874389895,2.088358,2606.2,2605.9,3.83744]
[1723874390297,0.07304482,2606.1,2605.9,3.83744]
[1723874390777,0.07304482,2606.1,2605.8,3.83756]
[1723874392210,0.07304482,2606.1,2605.9,7.67478]
[1723874392419,0.07304482,2606.1,2605.9,3.83739]
[1723874392721,0.07304482,2606.1,2605.9,7.67475]
[1723874393093,0.07304482,2606.1,2606.0,3.83729]
[1723874393498,1.329,2606.4,2606.1,3.83712]
[1723874394402,0.37568,2606.3,2606.1,3.83712]
[1723874395932,0.07304272,2606.2,2606.1,3.83712]
[1723874396230,1.329,2606.4,2606.1,3.83712]
[1723874396403,0.07304272,2606.2,2606.1,3.83712]
[1723874396600,1.329,2606.4,2606.1,3.83712]
[1723874396812,0.07304272,2606.2,2606.1,3.83712]
[1723874397002,1.329,2606.4,2606.1,3.83712]
[1723874397202,0.07304272,2606.2,2606.1,3.83712]
[1723874397419,1.329,2606.4,2606.1,3.83712]
[1723874397693,1.68636426,2606.2,2606.1,3.83712]
[1723874397890,1.61332154,2606.2,2606.1,3.83712]
[1723874398091,1.68636426,2606.2,2606.1,3.83712]
[1723874400975,0.07304272,2606.2,2606.1,3.83712]
[1723874402549,1.68569106,2606.2,2606.1,3.83712]
[1723874403674,0.07304272,2606.2,2606.1,3.83712]
[1723874403845,2.08885315,2606.2,2606.1,3.83712]
[1723874404184,0.07304272,2606.2,2606.1,3.83712]
[1723874405262,1.68532453,2606.2,2606.1,3.83712]
[1723874405840,1.68532623,2606.2,2606.1,3.83712]
[1723874406345,0.07304272,2606.2,2606.1,3.83712]
[1723874406555,1.68532623,2606.2,2606.1,3.83712]
[1723874407341,5.35112623,2606.2,2606.1,3.83712]
[1723874407663,6.49084452,2606.2,2605.7,3.83763]
[1723874407852,0.80609269,2605.9,2605.8,3.83757]
[1723874408376,1.20918423,2605.9,2605.8,3.83757]
[1723874408877,0.8060026,2605.9,2605.8,3.83757]
[1723874409540,1.20918423,2606.0,2605.8,3.83757]
[1723874409747,1.20918423,2605.9,2605.8,3.83757]
[1723874410066,1.20918423,2606.0,2605.8,3.83757]
[1723874410576,1.20918423,2605.9,2605.8,3.83757]
[1723874410812,1.20918423,2606.0,2605.8,3.83757]
[1723874410944,0.80586794,2605.9,2605.8,3.83757]
[1723874411540,1.20918423,2606.1,2605.9,3.83744]
[1723874412361,0.80572645,2606.0,2605.9,3.83744]
[1723874412582,0.80572645,2606.0,2605.9,10.840681]
[1723874412881,1.20918423,2606.1,2605.9,10.840681]
[1723874412882,1.20918423,2606.1,2606.0,3.83729]
[1723874413712,1.61224565,2606.1,2605.9,3.83736]
[1723874414012,1.20855704,2606.1,2606.0,3.83729]
[1723874414591,1.61224565,2606.1,2606.0,3.83729]
[1723874414914,1.61224565,2606.1,2605.8,3.83745]
[1723874415122,0.8057177,2605.9,2605.8,3.83745]
[1723874415907,1.20857655,2605.9,2605.8,3.83745]
[1723874416069,1.20857655,2606.0,2605.8,3.83745]
[1723874417595,0.87459306,2605.9,2605.8,3.83745]
[1723874417792,0.06903489,2605.9,2605.8,3.83745]
[1723874418235,0.06903489,2605.9,2605.7,3.83769]
[1723874418236,1.68128054,2605.9,2605.7,3.83769]
[1723874418435,1.20832891,2605.8,2605.7,3.83769]
[1723874418799,1.27733442,2605.8,2605.7,3.83769]
[1723874422242,0.06900551,2605.8,2605.7,3.83769]
[1723874423335,0.87419218,2605.8,2605.7,3.83769]
[1723874423698,0.06900551,2605.8,2605.7,3.83769]
[1723874424304,1.27733442,2605.8,2605.7,3.83769]
[1723874424540,0.06900551,2605.8,2605.7,3.83769]
[1723874425245,1.27733442,2605.8,2605.7,3.83769]
[1723874426113,0.06900551,2605.8,2605.7,3.83769]
[1723874426304,1.27733442,2605.8,2605.7,3.83769]
[1723874428352,0.87440554,2605.8,2605.7,3.83769]
[1723874428524,0.06900551,2605.8,2605.7,3.83769]
[1723874428702,1.27733442,2605.8,2605.7,3.83769]
[1723874432355,1.27733442,2605.8,2605.6,3.83787]
[1723874432660,1.27733442,2605.8,2605.1,3.8386]
[1723874432661,3.63402891,2605.7,2605.2,3.83838]
[1723874432813,3.63402891,2605.7,2605.4,3.83816]
[1723874432814,2.537695,2605.5,2605.4,3.83816]
[1723874433012,1.39792616,2605.5,2605.4,3.83816]
[1723874433259,2.60639638,2605.5,2605.4,3.83816]
[1723874433470,1.27739638,2605.5,2605.4,3.83816]
[1723874434457,0.8744287,2605.5,2605.4,3.83816]
[1723874436097,0.87431135,2605.5,2605.4,3.83816]
[1723874439271,0.06892616,2605.5,2605.4,3.83816]
[1723874440086,0.87431135,2605.5,2605.4,3.83816]
[1723874443299,0.87431135,2605.5,2605.4,10.517656]
[1723874443300,0.06892616,2605.5,2605.4,10.517656]
[1723874445542,0.80538519,2605.7,2605.5,3.83803]
[1723874445732,0.80538519,2605.7,2605.6,3.83788]
[1723874445894,0.80538519,2605.7,2605.6,8.7274826]
[1723874446092,20.82847022,2605.8,2605.7,7.67548]
[1723874446093,20.42538519,2605.8,2605.7,7.67548]
[1723874449639,19.62,2605.8,2605.7,7.67548]
[1723874451231,19.68669375,2605.8,2605.7,7.67548]
[1723874451426,20.89516397,2605.8,2605.7,7.67548]
[1723874451590,19.68669375,2605.8,2605.7,7.67548]
[1723874452192,20.89516397,2605.8,2605.7,7.67548]
[1723874453633,20.89516397,2605.8,2605.7,3.83774]
[1723874456971,20.89516397,2605.8,2605.7,7.67548]
[1723874457436,19.68669375,2605.8,2605.7,7.67548]
[1723874457625,20.89516397,2605.8,2605.7,7.67548]
[1723874457821,20.49244847,2605.8,2605.7,7.67548]
[1723874458073,20.49245011,2605.8,2605.7,7.67548]
[1723874458249,19.68669375,2605.8,2605.7,7.67548]
[1723874458563,20.89516397,2605.8,2605.7,7.67548]
[1723874458775,20.49250369,2605.8,2605.7,10.01658]
[1723874459226,19.68669375,2605.8,2605.7,10.01658]
[1723874459821,0.06669375,2605.8,2605.7,13.85432]
[1723874460048,0.80587112,2606.1,2606.0,11.51187]
[1723874460248,1.61159334,2606.3,2606.0,7.329577]
[1723874460249,1.20847022,2606.3,2606.0,7.329577]
[1723874460481,0.86822993,2606.1,2606.0,11.166867]
[1723874460769,0.80581297,2606.1,2606.0,11.166867]
[1723874461095,0.86610216,2606.1,2606.0,11.166867]
[1723874461769,0.86610216,2606.1,2606.0,10.01568]
[1723874461929,0.06028919,2606.1,2606.0,7.67458]
[1723874462126,1.26875941,2606.1,2606.0,7.67458]
[1723874463124,0.06028919,2606.1,2606.0,7.67458]
[1723874464880,0.86583737,2606.1,2606.0,7.67458]
[1723874474876,0.06028919,2606.1,2606.0,7.67458]
[1723874485800,0.06028919,2606.1,2606.0,11.51187]
[1723874486189,0.80554818,2606.3,2606.2,7.674]
[1723874486873,1.20847022,2606.3,2606.2,7.67392]
[1723874487198,1.91942869,2606.3,2606.2,7.67392]
[1723874489416,0.71095847,2606.3,2606.2,3.83692]
[1723874489699,2.32255181,2606.3,2606.2,3.83692]
[1723874490774,2.3064,2606.2,2606.0,3.83715]
[1723874490975,1.20824833,2606.1,2606.0,3.83715]
[1723874491863,1.20824833,2606.1,2606.0,7.67444]
[1723874492065,3.87980351,2606.2,2606.1,3.83715]
[1723874492289,2.3064,2606.2,2606.1,3.83715]
[1723874492696,3.91799334,2606.2,2606.1,3.83715]
[1723874495938,3.9773144,2606.2,2606.1,3.83715]
[1723874496335,5.3063144,2606.2,2605.8,3.83754]
[1723874496541,3.6354,2606.0,2605.6,3.8378]
[1723874496699,4.56934458,2606.0,2605.7,3.8377]
[1723874496898,0.05930691,2605.9,2605.7,3.8377]
[1723874501326,0.05930691,2605.9,2605.6,7.67561]
[1723874502126,0.05930691,2605.9,2605.6,3.8378]
[1723874502463,2.3064,2605.8,2605.6,3.8378]
[1723874503161,0.05920763,2605.7,2605.6,3.8378]
[1723874503359,2.3064,2605.8,2605.6,3.8378]
[1723874503666,0.05920257,2605.7,2605.6,3.8378]
[1723874504329,3.6354,2605.8,2605.6,3.8378]
[1723874504531,0.05920257,2605.7,2605.6,3.8378]
[1723874504830,4.33879829,2605.8,2605.6,3.8378]
[1723874505159,0.0592169,2605.7,2605.6,3.8378]
[1723874505359,4.33879829,2605.8,2605.6,3.8378]
[1723874505527,0.05916005,2605.7,2605.6,3.8378]
[1723874505736,4.33879829,2605.8,2605.6,3.8378]
[1723874505921,0.73950371,2605.7,2605.6,3.8378]
[1723874508273,0.05916005,2605.7,2605.4,3.83804]
[1723874508476,1.329,2605.5,2605.4,3.83804]
[1723874508771,1.38801544,2605.5,2605.4,3.83804]
[1723874509075,1.75745698,2605.5,2605.3,4.6438818]
[1723874509431,1.20792212,2605.4,2605.3,3.83829]
[1723874509832,1.26691571,2605.4,2605.3,3.83829]
[1723874514535,0.86346614,2605.4,2605.3,3.83829]
[1723874514958,0.86346614,2605.4,2605.2,3.83834]
[1723874514959,1.6321454,2605.4,2605.2,3.83834]
[1723874515169,3.6177,2605.3,2605.0,3.83871]
[1723874515385,0.80454948,2605.2,2605.0,3.83871]
[1723874515555,0.80454948,2605.2,2605.1,3.83862]
[1723874515556,0.05896338,2605.2,2605.1,3.83862]
[1723874515883,1.57322874,2605.4,2605.1,3.83862]
[1723874516085,0.05892751,2605.2,2605.1,3.83862]
[1723874516282,1.57322874,2605.4,2605.1,3.83862]
[1723874516484,0.05892751,2605.2,2605.1,3.83862]
[1723874516785,0.05892751,2605.2,2605.0,7.67737]
[1723874516977,1.34847872,2605.3,2605.0,7.67737]
[1723874517181,0.05890565,2605.1,2605.0,3.83868]
[1723874517391,1.34847872,2605.3,2605.0,7.67736]
[1723874517594,1.34847872,2605.3,2605.0,7.67737]
[1723874517595,0.05890565,2605.1,2605.0,7.67737]
[1723874517755,0.80454948,2605.2,2605.0,3.83868]
[1723874517961,0.05890565,2605.1,2605.0,7.67737]
[1723874518559,0.05890565,2605.1,2605.0,3.83868]
[1723874520494,0.05890565,2605.1,2604.9,3.83888]
[1723874537412,0.86345513,2605.1,2604.9,3.83888]
[1723874537636,0.05890565,2605.1,2604.9,3.83888]
[1723874538510,0.86345513,2605.1,2604.9,3.83888]
[1723874541441,0.80454948,2605.0,2604.9,3.83888]
[1723874541849,0.8633865,2605.0,2604.9,3.83888]
[1723874545553,2.11779417,2605.0,2604.8,3.83892]
[1723874545759,0.80509009,2604.9,2604.8,7.67791]
[1723874545940,0.86384708,2604.9,2604.8,7.67791]
[1723874546155,0.05875699,2604.9,2604.8,9.96331]
[1723874546347,0.80509009,2605.1,2605.0,7.67754]
[1723874547544,1.20792212,2605.2,2605.1,3.83862]
[1723874548531,2.93956283,2605.3,2605.1,3.83862]
[1723874548782,3.47170334,2605.3,2605.1,3.83862]
[1723874549453,1.61056283,2605.2,2605.1,3.83862]
[1723874553478,2.01402798,2605.2,2605.1,3.83862]
[1723874554066,2.0160466,2605.2,2605.1,3.83862]
[1723874556069,2.07487297,2605.2,2605.1,3.83862]
[1723874557676,0.05882637,2605.2,2605.1,3.83862]
[1723874558038,1.86114051,2605.3,2605.1,3.83862]
[1723874558281,0.05882131,2605.2,2605.1,3.83862]
[1723874558793,0.05882131,2605.2,2605.0,3.83876]
[1723874558939,2.0169442,2605.2,2605.0,3.83876]
[1723874559133,0.05879945,2605.1,2605.0,3.83876]
[1723874559666,2.07574365,2605.1,2605.0,3.83876]
[1723874563245,2.07658532,2605.1,2605.0,3.83876]
[1723874564480,0.05879945,2605.1,2605.0,3.83876]
[1723874564782,3.75034304,2605.3,2605.0,3.83876]
[1723874564950,0.05754166,2605.1,2605.0,3.83876]
[1723874565155,3.75034304,2605.3,2605.0,3.83876]
[1723874565490,0.05754166,2605.1,2605.0,3.83876]
[1723874565683,3.75034304,2605.3,2605.0,3.83876]
[1723874565846,2.07543085,2605.1,2605.0,3.83876]
[1723874566047,2.01788919,2605.1,2605.0,3.83876]
[1723874566287,2.07543085,2605.1,2605.0,3.83876]
[1723874570288,2.07543085,2605.1,2605.0,7.67753]
[1723874570495,1.26815359,2605.1,2605.0,10.01573]
[1723874570703,0.8645616,2605.1,2605.0,10.01573]
[1723874570992,0.05754166,2605.1,2605.0,11.35095302]
[1723874571200,0.05754166,2605.1,2605.0,13.01573]
[1723874572700,0.05754166,2605.1,2605.0,16.8545]
[1723874572855,0.05754166,2605.1,2605.0,20.19247815]
[1723874573350,0.80701994,2605.4,2605.0,20.19247815]
[1723874573351,0.80701994,2605.4,2605.3,10.01484]
[1723874574774,0.80701994,2605.5,2605.4,3.83818]
[1723874575101,1.21061193,2605.6,2605.4,3.83818]
[1723874575102,0.80701994,2605.6,2605.5,7.67606]
[1723874575281,20.42701994,2605.7,2605.6,7.67576]
[1723874575487,0.80701994,2605.8,2605.6,2.3382]
[1723874575664,0.80701994,2605.9,2605.8,7.67518]
[1723874575856,1.21061193,2606.0,2605.9,3.83744]
[1723874576579,1.21061193,2606.0,2605.8,3.83759]
[1723874576580,2.53961193,2606.0,2605.8,3.83759]
[1723874576784,1.21061193,2605.9,2605.8,3.83759]
[1723874577570,5.90888805,2606.0,2605.8,3.83759]
[1723874578265,0.80478629,2605.9,2605.8,3.83759]
[1723874582005,4.88041193,2606.0,2605.9,3.83744]
[1723874582006,2.13378629,2606.0,2605.9,3.83744]
[1723874583022,1.329,2606.0,2605.9,3.83744]
[1723874584098,2.13378629,2606.0,2605.8,3.83749]
[1723874584285,1.54237863,2606.0,2605.8,3.83749]
[1723874584487,2.34716492,2606.0,2605.8,3.83749]
[1723874584725,2.34716492,2606.0,2605.8,7.67497]
[1723874585229,1.54237863,2606.0,2605.8,7.67497]
[1723874585595,2.34716492,2606.0,2605.8,7.67497]